[Event "*** SCC Grand Prix: Titled Tuesday Blitz"]
[Site "Chess.com"]
[Date "2020.09.08"]
[Round "9"]
[White "dretch"]
[Black "OminousOmen"]
[Result "1/2-1/2"]
[WhiteElo "2808"]
[BlackElo "2950"]
[TimeControl "180+1"]
[EndTime "11:48:02 PDT"]
[Termination "Game drawn - insufficient material"]

1. d4 {[%clk 0:02:56]} 1... Nf6 {[%clk 0:03:00.1]} 2. c4 {[%clk 0:02:56.1]} 2...
g6 {[%clk 0:03:00]} 3. Nc3 {[%clk 0:02:56.4]} 3... Bg7 {[%clk 0:03:00.2]} 4. e4
{[%clk 0:02:56.3]} 4... d6 {[%clk 0:03:00.4]} 5. Nf3 {[%clk 0:02:56.7]} 5... O-O
{[%clk 0:03:00.1]} 6. h3 {[%clk 0:02:57]} 6... e5 {[%clk 0:02:56.6]} 7. d5
{[%clk 0:02:55.3]} 7... Na6 {[%clk 0:02:57.1]} 8. Bg5 {[%clk 0:02:52.7]} 8... h6
{[%clk 0:02:55.3]} 9. Be3 {[%clk 0:02:52.5]} 9... Nc5 {[%clk 0:02:52.5]} 10. Nd2
{[%clk 0:02:51.1]} 10... Nh5 {[%clk 0:02:30.2]} 11. b4 {[%clk 0:02:45.4]} 11...
Na6 {[%clk 0:02:29.3]} 12. a3 {[%clk 0:02:38.4]} 12... Nf4 {[%clk 0:02:22.1]}
13. c5 {[%clk 0:02:24.7]} 13... f5 {[%clk 0:02:15.1]} 14. Rc1 {[%clk 0:02:17.5]}
14... Nxg2+ {[%clk 0:02:11.7]} 15. Bxg2 {[%clk 0:02:16.8]} 15... f4 {[%clk
0:02:12.5]} 16. Qf3 {[%clk 0:01:30.9]} 16... Kh7 {[%clk 0:02:06.8]} 17. c6
{[%clk 0:01:26.6]} 17... fxe3 {[%clk 0:01:59.9]} 18. Qxe3 {[%clk 0:01:27.1]}
18... h5 {[%clk 0:02:00.6]} 19. O-O {[%clk 0:01:18.4]} 19... Bh6 {[%clk
0:01:58.8]} 20. Qd3 {[%clk 0:01:18.8]} 20... Qh4 {[%clk 0:01:23.3]} 21. Rc2
{[%clk 0:01:10.7]} 21... Rf7 {[%clk 0:01:17.8]} 22. Qg3 {[%clk 0:01:02.9]} 22...
Qf6 {[%clk 0:01:10.3]} 23. Qd3 {[%clk 0:00:29.2]} 23... Bf4 {[%clk 0:00:57.7]}
24. Ne2 {[%clk 0:00:25.9]} 24... Bh6 {[%clk 0:00:57.5]} 25. Nf3 {[%clk
0:00:20.1]} 25... g5 {[%clk 0:00:41.5]} 26. Nh2 {[%clk 0:00:20.2]} 26... g4
{[%clk 0:00:41.3]} 27. hxg4 {[%clk 0:00:18.7]} 27... hxg4 {[%clk 0:00:42.2]} 28.
Rc3 {[%clk 0:00:17.5]} 28... Bf4 {[%clk 0:00:38.3]} 29. cxb7 {[%clk 0:00:16.1]}
29... Bxb7 {[%clk 0:00:37.6]} 30. Nxg4 {[%clk 0:00:16.2]} 30... Qg5 {[%clk
0:00:32.5]} 31. Qh3+ {[%clk 0:00:16.1]} 31... Kg7 {[%clk 0:00:32.5]} 32. Nxf4
{[%clk 0:00:15.3]} 32... exf4 {[%clk 0:00:33]} 33. Nh2 {[%clk 0:00:15.2]} 33...
Bc8 {[%clk 0:00:24.8]} 34. Nf3 {[%clk 0:00:13.8]} 34... Qf6 {[%clk 0:00:21.3]}
35. e5 {[%clk 0:00:09.7]} 35... dxe5 {[%clk 0:00:15.5]} 36. Qh5 {[%clk
0:00:08.9]} 36... Qf5 {[%clk 0:00:03.5]} 37. Ng5 {[%clk 0:00:08.7]} 37... Re7
{[%clk 0:00:02.6]} 38. Be4 {[%clk 0:00:08.6]} 38... Qg4+ {[%clk 0:00:02.6]} 39.
Qxg4 {[%clk 0:00:08.8]} 39... Bxg4 {[%clk 0:00:03.5]} 40. Bd3 {[%clk 0:00:09.1]}
40... Rd8 {[%clk 0:00:02.4]} 41. Bxa6 {[%clk 0:00:08.8]} 41... e4 {[%clk
0:00:02.7]} 42. f3 {[%clk 0:00:08.5]} 42... exf3 {[%clk 0:00:01.9]} 43. Nxf3
{[%clk 0:00:09.4]} 43... Rxd5 {[%clk 0:00:02.3]} 44. Bc4 {[%clk 0:00:09.7]}
44... Rh5 {[%clk 0:00:02.5]} 45. Rf2 {[%clk 0:00:09.2]} 45... Kf6 {[%clk
0:00:02.8]} 46. Bf1 {[%clk 0:00:09.2]} 46... Reh7 {[%clk 0:00:03]} 47. Nh2
{[%clk 0:00:08.7]} 47... Be6 {[%clk 0:00:02.4]} 48. Be2 {[%clk 0:00:09]} 48...
Rg5+ {[%clk 0:00:02.5]} 49. Rg2 {[%clk 0:00:09.5]} 49... Rxg2+ {[%clk
0:00:01.8]} 50. Kxg2 {[%clk 0:00:10.4]} 50... Bd5+ {[%clk 0:00:02.4]} 51. Bf3
{[%clk 0:00:10.3]} 51... Be6 {[%clk 0:00:02.7]} 52. Ng4+ {[%clk 0:00:10.6]}
52... Kg5 {[%clk 0:00:03.3]} 53. Nf2 {[%clk 0:00:11]} 53... Kf6 {[%clk
0:00:03.1]} 54. Rc5 {[%clk 0:00:10.8]} 54... Rg7+ {[%clk 0:00:03]} 55. Kf1
{[%clk 0:00:10.6]} 55... Bb3 {[%clk 0:00:02.3]} 56. Ne4+ {[%clk 0:00:10.8]}
56... Ke6 {[%clk 0:00:03]} 57. Rc6+ {[%clk 0:00:10.6]} 57... Ke5 {[%clk
0:00:03.5]} 58. Rc5+ {[%clk 0:00:10.3]} 58... Kd4 {[%clk 0:00:03.7]} 59. Kf2
{[%clk 0:00:10.9]} 59... Bd5 {[%clk 0:00:03.2]} 60. Nc3 {[%clk 0:00:10.1]} 60...
Bxf3 {[%clk 0:00:02]} 61. Nb5+ {[%clk 0:00:10.4]} 61... Ke4 {[%clk 0:00:01.9]}
62. Nc3+ {[%clk 0:00:10]} 62... Kd4 {[%clk 0:00:02.4]} 63. Kxf3 {[%clk
0:00:09.2]} 63... Rg3+ {[%clk 0:00:02.7]} 64. Kxf4 {[%clk 0:00:09.4]} 64... Rxc3
{[%clk 0:00:03.6]} 65. Ra5 {[%clk 0:00:09.6]} 65... c5 {[%clk 0:00:03.9]} 66.
Rxa7 {[%clk 0:00:08.6]} 66... cxb4 {[%clk 0:00:04.1]} 67. axb4 {[%clk
0:00:09.1]} 67... Rb3 {[%clk 0:00:04.8]} 68. Rb7 {[%clk 0:00:09]} 68... Kc4
{[%clk 0:00:05.3]} 69. Ke5 {[%clk 0:00:09.3]} 69... Rxb4 {[%clk 0:00:05.7]} 70.
Rxb4+ {[%clk 0:00:09.3]} 70... Kxb4 {[%clk 0:00:06]} 1/2-1/2

[Event "*** SCC Grand Prix: Titled Tuesday Blitz"]
[Site "Chess.com"]
[Date "2020.09.08"]
[Round "9"]
[White "vovachesss"]
[Black "Tooweak2slow03"]
[Result "1-0"]
[WhiteElo "2684"]
[BlackElo "2771"]
[TimeControl "180+1"]
[EndTime "11:48:02 PDT"]
[Termination "vovachesss won by resignation"]

1. c4 {[%clk 0:03:00.9]} 1... e6 {[%clk 0:03:00.9]} 2. Nc3 {[%clk 0:02:59.6]}
2... Bb4 {[%clk 0:02:59.8]} 3. e4 {[%clk 0:02:54.3]} 3... b6 {[%clk 0:02:52.1]}
4. Qb3 {[%clk 0:02:52.1]} 4... a5 {[%clk 0:02:51.4]} 5. a3 {[%clk 0:02:51.8]}
5... Bxc3 {[%clk 0:02:50.8]} 6. Qxc3 {[%clk 0:02:52.7]} 6... Nf6 {[%clk
0:02:49.2]} 7. e5 {[%clk 0:02:50.7]} 7... Ng8 {[%clk 0:02:48]} 8. d4 {[%clk
0:02:50.7]} 8... Ne7 {[%clk 0:02:43.6]} 9. Nf3 {[%clk 0:02:50.4]} 9... Bb7
{[%clk 0:02:43.2]} 10. Bg5 {[%clk 0:02:48.9]} 10... h6 {[%clk 0:02:42.9]} 11.
Bh4 {[%clk 0:02:48.7]} 11... d6 {[%clk 0:02:42.8]} 12. Be2 {[%clk 0:02:47.4]}
12... Qd7 {[%clk 0:02:38.8]} 13. exd6 {[%clk 0:02:23.4]} 13... cxd6 {[%clk
0:02:33.1]} 14. d5 {[%clk 0:01:52.1]} 14... e5 {[%clk 0:02:14.8]} 15. Nd2 {[%clk
0:01:43.4]} 15... O-O {[%clk 0:01:58.2]} 16. O-O {[%clk 0:01:38.8]} 16... Ng6
{[%clk 0:01:52.5]} 17. Bg3 {[%clk 0:01:34.3]} 17... Qe7 {[%clk 0:01:40.7]} 18.
Qe3 {[%clk 0:01:20.3]} 18... Nd7 {[%clk 0:01:37.3]} 19. f4 {[%clk 0:01:19]}
19... Rae8 {[%clk 0:00:29.7]} 20. f5 {[%clk 0:01:05.6]} 20... Nf4 {[%clk
0:00:29.9]} 21. b4 {[%clk 0:00:52]} 21... Qg5 {[%clk 0:00:27.8]} 22. Kh1 {[%clk
0:00:35.6]} 22... Nf6 {[%clk 0:00:22.4]} 23. Rae1 {[%clk 0:00:24.1]} 23... N6h5
{[%clk 0:00:14.8]} 24. Bxh5 {[%clk 0:00:22.7]} 24... Nxh5 {[%clk 0:00:12.7]} 25.
Bf2 {[%clk 0:00:18.2]} 25... Nf4 {[%clk 0:00:11.4]} 26. Bg3 {[%clk 0:00:15.6]}
26... Nh5 {[%clk 0:00:11.3]} 27. Qxg5 {[%clk 0:00:15.1]} 27... hxg5 {[%clk
0:00:12.2]} 28. Bf2 {[%clk 0:00:15.3]} 28... axb4 {[%clk 0:00:10]} 29. axb4
{[%clk 0:00:16.2]} 29... Nf4 {[%clk 0:00:10.8]} 30. Bxb6 {[%clk 0:00:15.2]}
30... Re7 {[%clk 0:00:10.4]} 31. Ne4 {[%clk 0:00:15]} 31... Rd7 {[%clk
0:00:09.5]} 32. Rb1 {[%clk 0:00:11.9]} 32... Rc8 {[%clk 0:00:07.9]} 33. Rfc1
{[%clk 0:00:11.5]} 33... Ne2 {[%clk 0:00:06.4]} 34. Rc2 {[%clk 0:00:10.9]} 34...
Nf4 {[%clk 0:00:06.7]} 35. Nxg5 {[%clk 0:00:10.1]} 35... f6 {[%clk 0:00:05.3]}
36. Ne4 {[%clk 0:00:10.3]} 36... Nxd5 {[%clk 0:00:05.4]} 37. Bf2 {[%clk
0:00:09.2]} 37... Ne3 {[%clk 0:00:04]} 38. Bxe3 {[%clk 0:00:08.7]} 38... Bxe4
{[%clk 0:00:04.3]} 39. Rbc1 {[%clk 0:00:08.8]} 39... Bxc2 {[%clk 0:00:03.6]} 40.
Rxc2 {[%clk 0:00:09.7]} 40... d5 {[%clk 0:00:04.1]} 41. c5 {[%clk 0:00:09.2]}
41... d4 {[%clk 0:00:04.6]} 42. Bd2 {[%clk 0:00:09.6]} 42... d3 {[%clk
0:00:04.3]} 43. Rc4 {[%clk 0:00:09.7]} 43... Rd4 {[%clk 0:00:04]} 44. Rxd4
{[%clk 0:00:09.9]} 44... exd4 {[%clk 0:00:04.9]} 45. g4 {[%clk 0:00:10.6]} 45...
Kf7 {[%clk 0:00:04.5]} 46. Kg2 {[%clk 0:00:11.2]} 46... Ke7 {[%clk 0:00:04.4]}
47. Kf3 {[%clk 0:00:11.8]} 47... Kd7 {[%clk 0:00:04.9]} 48. Ke4 {[%clk
0:00:12.2]} 48... Kc6 {[%clk 0:00:05.8]} 49. Kxd3 {[%clk 0:00:11.7]} 49... Rd8
{[%clk 0:00:06]} 50. Kc4 {[%clk 0:00:10.3]} 50... Re8 {[%clk 0:00:02.1]} 51. b5+
{[%clk 0:00:10.6]} 51... Kc7 {[%clk 0:00:02.6]} 52. Bf4+ {[%clk 0:00:10.8]}
52... Kb7 {[%clk 0:00:03.1]} 53. c6+ {[%clk 0:00:11.1]} 53... Kb6 {[%clk
0:00:04]} 54. Bd6 {[%clk 0:00:10.3]} 54... Re1 {[%clk 0:00:03.9]} 55. Bc5+
{[%clk 0:00:10.7]} 55... Kc7 {[%clk 0:00:03.9]} 56. Bxd4 {[%clk 0:00:09.3]}
56... Rc1+ {[%clk 0:00:03.9]} 57. Kd5 {[%clk 0:00:09.9]} 57... Rb1 {[%clk
0:00:04.3]} 58. b6+ {[%clk 0:00:10.8]} 58... Kc8 {[%clk 0:00:04]} 59. b7+ {[%clk
0:00:09.9]} 59... Kd8 {[%clk 0:00:04.3]} 60. Ba7 {[%clk 0:00:10.1]} 60... Rb5+
{[%clk 0:00:04]} 61. Ke6 {[%clk 0:00:10.5]} 61... Kc7 {[%clk 0:00:04.1]} 62.
b8=Q+ {[%clk 0:00:10.7]} 62... Rxb8 {[%clk 0:00:05]} 63. Bxb8+ {[%clk
0:00:11.6]} 63... Kxb8 {[%clk 0:00:05.9]} 64. Kf7 {[%clk 0:00:12.2]} 64... Kc7
{[%clk 0:00:06.8]} 65. Kxg7 {[%clk 0:00:13.1]} 65... Kxc6 {[%clk 0:00:07.7]} 66.
Kxf6 {[%clk 0:00:13.9]} 1-0

[Event "*** SCC Grand Prix: Titled Tuesday Blitz"]
[Site "Chess.com"]
[Date "2020.09.08"]
[Round "9"]
[White "Ramu_K_FM_FT"]
[Black "IngOscarArdila"]
[Result "1/2-1/2"]
[WhiteElo "1965"]
[BlackElo "2147"]
[TimeControl "180+1"]
[EndTime "11:48:12 PDT"]
[Termination "Game drawn by repetition"]

1. e4 {[%clk 0:03:00.9]} 1... e5 {[%clk 0:02:14.4]} 2. Nf3 {[%clk 0:02:59.7]}
2... Nf6 {[%clk 0:02:11.5]} 3. Nc3 {[%clk 0:02:58.2]} 3... Nc6 {[%clk
0:02:11.1]} 4. Bb5 {[%clk 0:02:55.7]} 4... Bb4 {[%clk 0:02:09.4]} 5. O-O {[%clk
0:02:53.8]} 5... O-O {[%clk 0:02:09.1]} 6. Re1 {[%clk 0:02:52.8]} 6... d6 {[%clk
0:02:08.4]} 7. h3 {[%clk 0:02:51.7]} 7... Nd4 {[%clk 0:02:06.2]} 8. Nxd4 {[%clk
0:02:48.2]} 8... exd4 {[%clk 0:02:07.1]} 9. Nb1 {[%clk 0:02:48.1]} 9... c6
{[%clk 0:02:06.2]} 10. Bf1 {[%clk 0:02:45.2]} 10... Re8 {[%clk 0:02:05.5]} 11.
a3 {[%clk 0:02:39.2]} 11... Ba5 {[%clk 0:02:01.2]} 12. b4 {[%clk 0:02:38.6]}
12... Bb6 {[%clk 0:02:00.9]} 13. d3 {[%clk 0:02:38.7]} 13... a5 {[%clk
0:02:00.7]} 14. Bb2 {[%clk 0:02:32.9]} 14... axb4 {[%clk 0:01:59.6]} 15. axb4
{[%clk 0:02:32.3]} 15... Rxa1 {[%clk 0:01:59.5]} 16. Bxa1 {[%clk 0:02:32]} 16...
Be6 {[%clk 0:01:57.6]} 17. Nd2 {[%clk 0:02:29]} 17... c5 {[%clk 0:01:57.4]} 18.
Nf3 {[%clk 0:02:18.7]} 18... Qa8 {[%clk 0:01:54.6]} 19. Qb1 {[%clk 0:02:00.7]}
19... Qa6 {[%clk 0:01:42.1]} 20. g3 {[%clk 0:01:51.3]} 20... Ra8 {[%clk
0:01:41.1]} 21. Bg2 {[%clk 0:01:40]} 21... h6 {[%clk 0:01:20.5]} 22. Rd1 {[%clk
0:01:25]} 22... Nd7 {[%clk 0:01:19.5]} 23. Nd2 {[%clk 0:01:22.1]} 23... c4
{[%clk 0:01:14.2]} 24. Nxc4 {[%clk 0:01:15.1]} 24... Bxc4 {[%clk 0:01:13.9]} 25.
dxc4 {[%clk 0:01:14.7]} 25... Qxc4 {[%clk 0:01:14.4]} 26. Bf1 {[%clk 0:01:12.2]}
26... Qe6 {[%clk 0:01:08.6]} 27. Bxd4 {[%clk 0:01:05.5]} 27... Qxe4 {[%clk
0:01:04.8]} 28. Bxb6 {[%clk 0:01:01.5]} 28... Nxb6 {[%clk 0:01:04.8]} 29. Rxd6
{[%clk 0:01:01.1]} 29... Na4 {[%clk 0:00:54.4]} 30. Bd3 {[%clk 0:00:50.2]} 30...
Qe5 {[%clk 0:00:53.3]} 31. Qd1 {[%clk 0:00:42.3]} 31... Kf8 {[%clk 0:00:50.4]}
32. Rd7 {[%clk 0:00:33.4]} 32... Rb8 {[%clk 0:00:44.1]} 33. Qf3 {[%clk
0:00:31.4]} 33... Qe6 {[%clk 0:00:31.7]} 34. Rxb7 {[%clk 0:00:26.1]} 34... Rxb7
{[%clk 0:00:31.1]} 35. Qxb7 {[%clk 0:00:26]} 35... Nb2 {[%clk 0:00:27.9]} 36.
Kg2 {[%clk 0:00:24.1]} 36... Nxd3 {[%clk 0:00:26.2]} 37. cxd3 {[%clk 0:00:24.2]}
37... Qb3 {[%clk 0:00:25.5]} 38. Qe4 {[%clk 0:00:23.1]} 38... g6 {[%clk
0:00:24.3]} 39. Qc4 {[%clk 0:00:22.8]} 39... Qb1 {[%clk 0:00:21.8]} 40. b5
{[%clk 0:00:22.5]} 40... Kg7 {[%clk 0:00:21.7]} 41. Qd4+ {[%clk 0:00:21.3]}
41... Kh7 {[%clk 0:00:21.4]} 42. b6 {[%clk 0:00:21.1]} 42... h5 {[%clk
0:00:19.8]} 43. Qf6 {[%clk 0:00:19.7]} 43... Qb3 {[%clk 0:00:17.5]} 44. Qd4
{[%clk 0:00:17.4]} 44... Kg8 {[%clk 0:00:15.5]} 45. h4 {[%clk 0:00:16.9]} 45...
Qb1 {[%clk 0:00:14.6]} 46. Qd8+ {[%clk 0:00:15.9]} 46... Kh7 {[%clk 0:00:13.2]}
47. Qd4 {[%clk 0:00:15.3]} 47... Qb5 {[%clk 0:00:11.8]} 48. Qc4 {[%clk
0:00:14.5]} 48... Qd7 {[%clk 0:00:07.3]} 49. d4 {[%clk 0:00:12.2]} 49... Qb7+
{[%clk 0:00:06.4]} 50. Kg1 {[%clk 0:00:10.4]} 50... Qf3 {[%clk 0:00:05.7]} 51.
Qc5 {[%clk 0:00:10]} 51... Qd1+ {[%clk 0:00:04.9]} 52. Kg2 {[%clk 0:00:08.8]}
52... Qg4 {[%clk 0:00:01.6]} 53. Qd5 {[%clk 0:00:08.3]} 53... g5 {[%clk
0:00:02.5]} 54. Qxf7+ {[%clk 0:00:07.7]} 54... Kh6 {[%clk 0:00:02.3]} 55. Qf6+
{[%clk 0:00:07.7]} 55... Kh7 {[%clk 0:00:03.2]} 56. Qxg5 {[%clk 0:00:08]} 56...
Qe4+ {[%clk 0:00:03.4]} 57. f3 {[%clk 0:00:07.4]} 57... Qe2+ {[%clk 0:00:03.1]}
58. Kg1 {[%clk 0:00:06.5]} 58... Qe1+ {[%clk 0:00:03.3]} 59. Kg2 {[%clk
0:00:06.2]} 59... Qe2+ {[%clk 0:00:03.8]} 60. Kg1 {[%clk 0:00:06.2]} 60... Qe1+
{[%clk 0:00:04.2]} 61. Kg2 {[%clk 0:00:06.4]} 61... Qe2+ {[%clk 0:00:04.6]}
1/2-1/2

[Event "*** SCC Grand Prix: Titled Tuesday Blitz"]
[Site "Chess.com"]
[Date "2020.09.08"]
[Round "9"]
[White "Alexsur1981"]
[Black "GOGIEFF"]
[Result "1/2-1/2"]
[WhiteElo "2732"]
[BlackElo "2902"]
[TimeControl "180+1"]
[EndTime "11:48:13 PDT"]
[Termination "Game drawn by agreement"]

1. e4 {[%clk 0:03:00.9]} 1... c5 {[%clk 0:03:00.1]} 2. Nc3 {[%clk 0:03:01]} 2...
Nc6 {[%clk 0:03:00.3]} 3. Bb5 {[%clk 0:02:59.5]} 3... e6 {[%clk 0:03:00.7]} 4.
Bxc6 {[%clk 0:02:59.2]} 4... bxc6 {[%clk 0:03:01.6]} 5. d3 {[%clk 0:02:59.9]}
5... Ne7 {[%clk 0:03:01.8]} 6. f4 {[%clk 0:03:00.6]} 6... d5 {[%clk 0:02:58.7]}
7. Nf3 {[%clk 0:03:01.2]} 7... c4 {[%clk 0:02:55.9]} 8. dxc4 {[%clk 0:02:58.2]}
8... Ba6 {[%clk 0:02:55.3]} 9. b3 {[%clk 0:02:43.2]} 9... Ng6 {[%clk 0:02:40.8]}
10. O-O {[%clk 0:02:40]} 10... dxc4 {[%clk 0:02:37.3]} 11. Qxd8+ {[%clk
0:02:28.1]} 11... Rxd8 {[%clk 0:02:36.5]} 12. f5 {[%clk 0:02:00.8]} 12... Bc5+
{[%clk 0:02:34.2]} 13. Kh1 {[%clk 0:01:59.5]} 13... cxb3 {[%clk 0:02:25.2]} 14.
Re1 {[%clk 0:01:58.9]} 14... bxc2 {[%clk 0:02:05.2]} 15. fxg6 {[%clk 0:01:56.7]}
15... hxg6 {[%clk 0:02:06.1]} 16. Bd2 {[%clk 0:01:34.7]} 16... Bb4 {[%clk
0:01:45.9]} 17. Rac1 {[%clk 0:01:31.2]} 17... Rxd2 {[%clk 0:01:36.7]} 18. Nxd2
{[%clk 0:01:32.1]} 18... Bxc3 {[%clk 0:01:37.1]} 19. Rxc2 {[%clk 0:01:32.5]}
19... Bb4 {[%clk 0:01:31.7]} 20. Rxc6 {[%clk 0:01:24.7]} 20... Bxd2 {[%clk
0:01:23.2]} 21. Rd1 {[%clk 0:01:24.6]} 21... Bf4 {[%clk 0:01:23.4]} 22. Rxa6
{[%clk 0:01:23]} 22... Rxh2+ {[%clk 0:01:21.8]} 23. Kg1 {[%clk 0:01:22.9]} 23...
Rh5 {[%clk 0:01:21.6]} 24. Kf2 {[%clk 0:01:20.4]} 24... Bc7 {[%clk 0:01:20.1]}
25. Rc6 {[%clk 0:01:16.6]} 25... Bb6+ {[%clk 0:01:20.2]} 26. Kf3 {[%clk
0:01:17.2]} 26... Ra5 {[%clk 0:01:20.2]} 27. Rd2 {[%clk 0:00:58.6]} 27... Ke7
{[%clk 0:01:19.9]} 28. Rc3 {[%clk 0:00:54.8]} 28... f5 {[%clk 0:01:15.8]} 29.
Rcd3 {[%clk 0:00:54.5]} 29... Kf6 {[%clk 0:01:14.5]} 30. g4 {[%clk 0:00:53.4]}
30... Ra4 {[%clk 0:01:07.1]} 31. exf5 {[%clk 0:00:52]} 31... gxf5 {[%clk
0:01:06.9]} 32. gxf5 {[%clk 0:00:52.5]} 32... Kxf5 {[%clk 0:01:03.1]} 33. Rd7
{[%clk 0:00:47]} 33... g5 {[%clk 0:01:00.7]} 34. Rf7+ {[%clk 0:00:46.8]} 34...
Kg6 {[%clk 0:01:00.8]} 35. Rf8 {[%clk 0:00:47.1]} 35... Bc5 {[%clk 0:00:46.6]}
36. Rc8 {[%clk 0:00:43.9]} 36... Bb4 {[%clk 0:00:35.9]} 37. Re2 {[%clk
0:00:42.3]} 37... Kf5 {[%clk 0:00:33.5]} 38. Rc7 {[%clk 0:00:39.1]} 38... Ra3+
{[%clk 0:00:30.7]} 39. Kg2 {[%clk 0:00:39.3]} 39... Bc3 {[%clk 0:00:23.9]} 40.
Rf7+ {[%clk 0:00:36.9]} 40... Kg6 {[%clk 0:00:21.7]} 41. Rf3 {[%clk 0:00:36.8]}
41... g4 {[%clk 0:00:15.9]} 42. Rd3 {[%clk 0:00:30]} 42... Kf5 {[%clk
0:00:14.6]} 43. Kf1 {[%clk 0:00:29.9]} 43... Bb4 {[%clk 0:00:13.9]} 44. Rxa3
{[%clk 0:00:29.7]} 44... Bxa3 {[%clk 0:00:14.8]} 45. Rf2+ {[%clk 0:00:26.2]}
45... Kg5 {[%clk 0:00:14.4]} 46. Rc2 {[%clk 0:00:24.4]} 46... a5 {[%clk
0:00:13.8]} 47. Kg2 {[%clk 0:00:21.6]} 47... e5 {[%clk 0:00:13.6]} 48. Rc4
{[%clk 0:00:20.4]} 48... Kf5 {[%clk 0:00:12.2]} 49. Rc3 {[%clk 0:00:16.3]} 49...
Bb4 {[%clk 0:00:11.9]} 50. Rd3 {[%clk 0:00:16.7]} 50... e4 {[%clk 0:00:12.3]}
51. Rd7 {[%clk 0:00:15.2]} 51... e3 {[%clk 0:00:12.6]} 52. Kf1 {[%clk
0:00:15.1]} 52... Ke4 {[%clk 0:00:12.5]} 53. Ke2 {[%clk 0:00:14.8]} 53... Bd2
{[%clk 0:00:13.1]} 54. Rg7 {[%clk 0:00:14.2]} 54... Kf4 {[%clk 0:00:13]} 55. a4
{[%clk 0:00:13.2]} 55... Kg3 {[%clk 0:00:13.2]} 56. Rg8 {[%clk 0:00:13.5]} 56...
Kh3 {[%clk 0:00:13.6]} 57. Rh8+ {[%clk 0:00:11.6]} 57... Kg2 {[%clk 0:00:13.7]}
58. Rg8 {[%clk 0:00:12.2]} 58... g3 {[%clk 0:00:14.2]} 59. Rg7 {[%clk
0:00:12.1]} 59... Kh2 {[%clk 0:00:12.7]} 60. Rh7+ {[%clk 0:00:10.2]} 60... Kg1
{[%clk 0:00:12.5]} 61. Rg7 {[%clk 0:00:10.9]} 61... g2 {[%clk 0:00:12.8]} 62.
Kf3 {[%clk 0:00:11.3]} 62... Kf1 {[%clk 0:00:12.2]} 63. Rxg2 {[%clk 0:00:11.8]}
63... Ke1 {[%clk 0:00:12.3]} 64. Re2+ {[%clk 0:00:11.6]} 64... Kd1 {[%clk
0:00:11.7]} 65. Rxe3 {[%clk 0:00:11.5]} 65... Bxe3 {[%clk 0:00:11.5]} 66. Kxe3
{[%clk 0:00:12.4]} 66... Kc2 {[%clk 0:00:12.4]} 67. Ke2 {[%clk 0:00:12.6]} 67...
Kc3 {[%clk 0:00:13.3]} 68. Kd1 {[%clk 0:00:12.5]} 68... Kb3 {[%clk 0:00:14.2]}
69. Kc1 {[%clk 0:00:13.4]} 69... Kxa4 {[%clk 0:00:13.4]} 70. Kb1 {[%clk
0:00:14.3]} 70... Kb3 {[%clk 0:00:13.1]} 1/2-1/2

[Event "*** SCC Grand Prix: Titled Tuesday Blitz"]
[Site "Chess.com"]
[Date "2020.09.08"]
[Round "9"]
[White "floplover"]
[Black "Roza_Idrisova"]
[Result "1/2-1/2"]
[WhiteElo "2303"]
[BlackElo "2166"]
[TimeControl "180+1"]
[EndTime "11:48:13 PDT"]
[Termination "Game drawn by repetition"]

1. d4 {[%clk 0:03:00.9]} 1... d5 {[%clk 0:02:59.6]} 2. c4 {[%clk 0:03:00.6]}
2... c6 {[%clk 0:02:59.8]} 3. Nf3 {[%clk 0:03:00.1]} 3... Nf6 {[%clk 0:02:59.1]}
4. e3 {[%clk 0:03:00.1]} 4... a6 {[%clk 0:02:59.2]} 5. Nc3 {[%clk 0:02:58.4]}
5... b5 {[%clk 0:02:59.1]} 6. c5 {[%clk 0:02:58.6]} 6... Bg4 {[%clk 0:02:58]} 7.
h3 {[%clk 0:02:54.2]} 7... Bxf3 {[%clk 0:02:56.3]} 8. gxf3 {[%clk 0:02:54.5]}
8... Nbd7 {[%clk 0:02:56.5]} 9. f4 {[%clk 0:02:54.4]} 9... e6 {[%clk 0:02:55]}
10. Bd3 {[%clk 0:02:50.5]} 10... g6 {[%clk 0:02:54.1]} 11. Bd2 {[%clk 0:02:47]}
11... Be7 {[%clk 0:02:52.2]} 12. Qc2 {[%clk 0:02:30.9]} 12... a5 {[%clk
0:02:51.9]} 13. Ne2 {[%clk 0:02:25.7]} 13... Nh5 {[%clk 0:02:42.5]} 14. Ng3
{[%clk 0:02:19.4]} 14... Ndf6 {[%clk 0:02:41.4]} 15. Ne2 {[%clk 0:02:11.3]}
15... Qc7 {[%clk 0:02:38.6]} 16. Ng1 {[%clk 0:02:11.2]} 16... Nd7 {[%clk
0:02:29.2]} 17. Nf3 {[%clk 0:02:11.4]} 17... f5 {[%clk 0:02:26.1]} 18. Be2
{[%clk 0:02:06.5]} 18... Nhf6 {[%clk 0:02:23]} 19. Ng5 {[%clk 0:02:02.5]} 19...
Nf8 {[%clk 0:02:22.2]} 20. a3 {[%clk 0:01:59.9]} 20... Ne4 {[%clk 0:02:21.7]}
21. h4 {[%clk 0:01:56.2]} 21... h6 {[%clk 0:02:05.1]} 22. Nf3 {[%clk 0:01:54.1]}
22... Bf6 {[%clk 0:02:02.1]} 23. h5 {[%clk 0:01:47.1]} 23... g5 {[%clk
0:01:56.7]} 24. Ne5 {[%clk 0:01:45.8]} 24... g4 {[%clk 0:01:51.7]} 25. f3 {[%clk
0:01:30.8]} 25... Ng3 {[%clk 0:01:49.1]} 26. Rg1 {[%clk 0:01:25.6]} 26... Nxe2
{[%clk 0:01:48.3]} 27. Kxe2 {[%clk 0:01:25.9]} 27... Bxe5 {[%clk 0:01:36.9]} 28.
fxe5 {[%clk 0:01:26.8]} 28... gxf3+ {[%clk 0:01:32.9]} 29. Kxf3 {[%clk 0:01:24]}
29... Qf7 {[%clk 0:01:32.2]} 30. Rh1 {[%clk 0:01:20.2]} 30... Kd7 {[%clk
0:01:30.6]} 31. Bc3 {[%clk 0:01:15.1]} 31... Nh7 {[%clk 0:01:28.6]} 32. Ke2
{[%clk 0:01:05.2]} 32... Ng5 {[%clk 0:01:27.8]} 33. Rag1 {[%clk 0:01:01.6]}
33... a4 {[%clk 0:01:26.7]} 34. Be1 {[%clk 0:01:00.4]} 34... Rhg8 {[%clk
0:01:22.9]} 35. Kd1 {[%clk 0:00:56.9]} 35... Ne4 {[%clk 0:01:22]} 36. Qe2 {[%clk
0:00:53.8]} 36... Rxg1 {[%clk 0:01:14.1]} 37. Rxg1 {[%clk 0:00:54]} 37... Rg8
{[%clk 0:01:13.8]} 38. Rh1 {[%clk 0:00:43]} 38... Rg4 {[%clk 0:01:09]} 39. Bf2
{[%clk 0:00:33.6]} 39... Rg2 {[%clk 0:01:03]} 40. Qe1 {[%clk 0:00:31.2]} 40...
Rxf2 {[%clk 0:00:55.6]} 41. Qa5 {[%clk 0:00:31]} 41... Rxb2 {[%clk 0:00:42.3]}
42. Qa7+ {[%clk 0:00:23.8]} 42... Ke8 {[%clk 0:00:41.8]} 43. Qb8+ {[%clk
0:00:22.5]} 43... Ke7 {[%clk 0:00:38.8]} 44. Kc1 {[%clk 0:00:21]} 44... Rg2
{[%clk 0:00:32.6]} 45. Rh3 {[%clk 0:00:18.4]} 45... Qe8 {[%clk 0:00:30.1]} 46.
Qa7+ {[%clk 0:00:15.5]} 46... Qd7 {[%clk 0:00:28]} 47. Qb8 {[%clk 0:00:15.7]}
47... Kf7 {[%clk 0:00:20.4]} 48. Qh8 {[%clk 0:00:14.3]} 48... Rg7 {[%clk
0:00:18.2]} 49. Qxh6 {[%clk 0:00:13.9]} 49... Kg8 {[%clk 0:00:17.9]} 50. Rh1
{[%clk 0:00:12.3]} 50... Qf7 {[%clk 0:00:17.1]} 51. Qf4 {[%clk 0:00:10.3]} 51...
Rg4 {[%clk 0:00:15.8]} 52. Qh6 {[%clk 0:00:10.4]} 52... Ng5 {[%clk 0:00:08.6]}
53. Rh4 {[%clk 0:00:07.3]} 53... Rxh4 {[%clk 0:00:06.7]} 54. Qxg5+ {[%clk
0:00:07.2]} 54... Qg7 {[%clk 0:00:07.3]} 55. Qxh4 {[%clk 0:00:07.6]} 55... Kh7
{[%clk 0:00:07.3]} 56. Qf6 {[%clk 0:00:05.2]} 56... Qg1+ {[%clk 0:00:06]} 57.
Kc2 {[%clk 0:00:04.9]} 57... Qf2+ {[%clk 0:00:05.5]} 58. Kd3 {[%clk 0:00:04.4]}
58... Qf1+ {[%clk 0:00:05.6]} 59. Kd2 {[%clk 0:00:04.6]} 59... Qf2+ {[%clk
0:00:05.6]} 60. Kd1 {[%clk 0:00:04.6]} 60... Qf1+ {[%clk 0:00:05.4]} 61. Kd2
{[%clk 0:00:04.8]} 61... Qf2+ {[%clk 0:00:05.6]} 62. Kd3 {[%clk 0:00:05.1]}
62... Qf1+ {[%clk 0:00:05.7]} 63. Kd2 {[%clk 0:00:05.2]} 1/2-1/2